fUST/lending_fUST_20241012
["ID","MTS","AMOUNT","RATE_DAILY","PERIOD"]
[340136461,1728672572465,-296.285714,0.00044658,2]
[340136462,1728672572490,-1393.02178905,0.0004489,28]
[340136463,1728672572514,-175.7747028,0.000449,2]
[340136464,1728672572536,-500.0,0.00044973,10]
[340136465,1728672572558,-244.45746213,0.00044973,10]
[340136466,1728672572581,-838.44,0.0004499,30]
[340136467,1728672572606,-7990.82913406,0.0004499,6]
[340136468,1728672572632,-7654.46777011,0.0004499,6]
[340136469,1728672572654,-1007.21964997,0.00044999,6]
[340136470,1728672572678,-606.50586775,0.00044999,120]
[340136471,1728672572703,-9653.87406466,0.00045,60]
[340136488,1728672631994,-17312.69446085,0.00045,60]
[340136491,1728672632022,-395.82320536,0.00045,60]
[340136518,1728672639975,-3776.2165955,0.00045,60]
[340136521,1728672639989,-37733.79196833,0.00045,60]
[340136523,1728672639999,-194.30319669,0.00045,60]
[340136525,1728672640009,-2353.5898999,0.00046425,120]
[340136527,1728672640019,-1393.02178905,0.00048034,28]
[340136529,1728672640031,-175.7747028,0.0004813,2]
[340136531,1728672640042,-150.0,0.00049,2]
[340136533,1728672640054,-296.285714,0.00049517,2]
[340136536,1728672640066,-150.112233,0.00051,34]
[340136538,1728672640077,-1393.02178905,0.00051179,28]
[340136540,1728672640088,-175.7747028,0.00051359,2]
[340136542,1728672640098,-190.134736,0.00051432,2]
[340136544,1728672640107,-190.134736,0.00051689,2]
[340136546,1728672640117,-150.112233,0.00052,66]
[340136548,1728672640126,-1000.0,0.00052,120]
[340136551,1728672640140,-159.56044,0.00052352,2]
[340136553,1728672640150,-2353.5898999,0.00052584,120]
[340136555,1728672640160,-1000.0,0.00052818,120]
[340136557,1728672640170,-150.112233,0.00053,33]
[340136559,1728672640180,-7860.447571,0.00053,120]
[340136561,1728672640189,-1000.0,0.00053636,120]
[340136563,1728672640200,-324.31,0.00053989,10]
[340136565,1728672640210,-270.26,0.00053989,10]
[340136567,1728672640220,-225.21,0.00053989,10]
[340136569,1728672640230,-407.98759949,0.00053998,31]
[340136571,1728672640239,-372.79629998,0.00053998,120]
[340136574,1728672640250,-500.0,0.00053998,120]
[340136575,1728672640260,-500.0,0.00053998,120]
[340136578,1728672640271,-500.0,0.00053998,120]
[340136580,1728672640282,-268.01873697,0.00053998,120]
[340136582,1728672640291,-400.34345741,0.00053998,120]
[340136584,1728672640300,-500.0,0.00053998,120]
[340136586,1728672640313,-500.0,0.00053998,120]
[340136588,1728672640325,-168.93935095,0.00053998,120]
[340136590,1728672640335,-500.0,0.00053998,120]
[340136592,1728672640344,-120404.11195,0.00053999,30]
[340136594,1728672640355,-500.07017649,0.00054,120]
[340136596,1728672640364,-1000.0,0.00054,120]
[340136598,1728672640374,-159001.33747401,0.000543,50]
[340136600,1728672640387,-2948.68625456,0.000543,50]
[340137001,1728672644311,-188.57745076,0.000543,50]
[340137183,1728672645959,-368.9,0.0005429,30]
[340137185,1728672645968,-237.32,0.000543,50]
[340139382,1728672881216,167.975384,0.00026986,2]
[340139383,1728673383179,167.975384,0.00026986,2]
[340139384,1728673556148,-400.0,0.00041897,30]
[340139385,1728673556170,-550.0,0.00041897,5]
[340139386,1728673556192,-11398.25287638,0.00041898,2]
[340139404,1728673766100,-400.0,0.00041897,5]
[340139405,1728673766121,-2110.04040658,0.00041898,2]
[340139406,1728673768125,-2818.42460764,0.00041898,2]
[340139407,1728673768147,-2632.57922712,0.00043578,120]
[340139408,1728673768169,-165.472777,0.00043678,2]
[340139409,1728673768191,-190.134736,0.00044191,2]
[340139410,1728673768213,-190.134736,0.00044412,2]
[340139411,1728673768235,-165.472777,0.00044437,2]
[340139412,1728673768257,-400.0,0.00044658,2]
[340139413,1728673768279,-165.472777,0.00045195,2]
[340139414,1728673768301,-165.472777,0.00045954,2]
[340139415,1728673768324,-402.5993141,0.00047,120]
[340139416,1728673768346,-153.0,0.00048342,120]
[340139417,1728673768367,-153.0,0.00048342,120]
[340139418,1728673768388,-153.0,0.00048342,120]
[340139419,1728673768409,-153.0,0.00048342,120]
[340139420,1728673768430,-150.0,0.00049,2]
[340139421,1728673768450,-2632.57922709,0.00049409,120]
[340139422,1728673768470,-400.0,0.00049517,2]
[340139423,1728673780693,299.8457639,0.0004352,2]
[340139424,1728673786355,153.0,0.00048342,120]
[340139425,1728673790386,153.0,0.00048342,120]
[340139441,1728673832060,-1000.0,0.00052,120]
[340139442,1728673832070,-1000.0,0.00052818,120]
[340139443,1728673832081,-324.31,0.00053351,10]
[340139444,1728673832090,-270.26,0.00053351,10]
[340139445,1728673832100,-225.21,0.00053351,10]
[340139446,1728673832109,-3890.89139867,0.00053351,8]
[340139447,1728673832178,-4491.1772274,0.00053351,8]
[340139448,1728673832190,-7271.74438162,0.00053351,8]
[340139449,1728673832202,-2469.37629553,0.00053361,2]
[340139450,1728673832216,-4605.68014659,0.00053361,2]
[340139495,1728673838361,-187.68,0.00053351,10]
[340139497,1728673838371,-5017.5039094,0.00053361,2]
[340139509,1728673838478,-13528.99855949,0.00053361,2]
[340139987,1728673842964,-558.34,0.00053351,30]
[340139989,1728673842976,-500.0,0.0005336,120]
[340139991,1728673842986,-500.0,0.0005336,120]
[340139993,1728673842996,-500.0,0.0005336,120]
[340139995,1728673843008,-545.97421765,0.0005336,120]
[340139997,1728673843019,-500.0,0.0005336,120]
[340140000,1728673843029,-417.28044321,0.0005336,120]
[340140002,1728673843040,-2582.95736726,0.00053361,2]
[340140018,1728673843185,-16049.5153107,0.00053361,2]
[340140020,1728673843199,-63827.51582171,0.00053361,2]
[340140022,1728673843208,-194.30319669,0.00053361,120]
[340140024,1728673843218,-175.7747028,0.00053536,2]
[340140026,1728673843228,-175.7747028,0.00053618,2]
[340140028,1728673843237,-1000.0,0.00053636,120]
[340140030,1728673843247,-500.0,0.00053699,120]
[340140032,1728673843256,-407.98759949,0.00053699,31]
[340140034,1728673843265,-372.79629998,0.00053699,120]
[340140036,1728673843274,-500.0,0.00053699,120]
[340140038,1728673843285,-500.0,0.00053699,120]
[340140040,1728673843295,-500.0,0.00053699,120]
[340140042,1728673843305,-400.34345741,0.00053699,120]
[340140045,1728673843316,-500.0,0.00053699,120]
[340140047,1728673843326,-260.69050879,0.00053699,120]
[340140049,1728673843336,-268.01873697,0.00053699,120]
[340140051,1728673843346,-500.0,0.00053699,120]
[340140053,1728673843356,-8367.48545732,0.000537,84]
[340140055,1728673843366,-175.7747028,0.000537,2]
[340140057,1728673843377,-228052.89573473,0.000537,15]
[340140059,1728673843390,-615.91,0.000537,15]
[340140062,1728673843410,-1616.47240693,0.000537,15]
[340140065,1728673843421,-31380.48004662,0.000537,15]
[340140067,1728673843432,-306.24798982,0.000537,15]
[340140069,1728673843444,-1974.68251898,0.000537,15]
[340140071,1728673843457,-10227.56619596,0.000537,15]
[340140074,1728673843469,-8920.30946204,0.000537,15]
[340140350,1728673846115,-177.0,0.00051,120]
[340140352,1728673846127,-20633.43515,0.000537,15]
[340140354,1728673846139,-1550.0889567,0.000537,15]
[340140365,1728673846244,-1018.09762914,0.000537,15]
[340140367,1728673846257,-3292.56034421,0.000537,15]
[340140543,1728673848673,153.0,0.00048342,120]
[340140564,1728673848894,153.0,0.00048342,120]
[340140585,1728673849115,153.0,0.00048342,120]
[340140607,1728673849328,153.0,0.00048342,120]
[340140643,1728673849666,153.0,0.00048342,120]
[340140664,1728673849886,153.0,0.00048342,120]
[340140687,1728673850096,153.0,0.00048342,120]
[340140711,1728673850318,153.0,0.00048342,120]
[340140735,1728673850534,153.0,0.00048342,120]
[340140749,1728673850753,153.0,0.00048342,120]
[340140763,1728673850957,153.0,0.00048342,120]
[340140764,1728673854744,153.0,0.00048342,120]
[340140765,1728673854960,153.0,0.00048342,120]
[340140766,1728673855799,153.0,0.00048342,120]
[340140767,1728673856028,153.0,0.00048342,120]
[340140768,1728673856245,153.0,0.00048342,120]
[340140769,1728673856477,153.0,0.00048342,120]
[340140770,1728673856799,153.0,0.00048342,120]
[340140771,1728673857020,153.0,0.00048342,120]
[340140772,1728673857524,153.0,0.00048342,120]
[340140773,1728673857746,153.0,0.00048342,120]
[340140774,1728673858070,153.0,0.00048342,120]
[340140775,1728673858901,153.0,0.00048342,120]
[340140776,1728673859207,153.0,0.00048342,120]
[340140777,1728673869923,500.0,0.00021918,30]
[340140778,1728673870374,500.0,0.00021918,30]
[340140779,1728673870826,155.40508015,0.00021918,30]
[340140780,1728673870850,344.59491985,0.00021918,30]
[340140781,1728673871344,500.0,0.00021918,30]
[340140782,1728673871722,500.0,0.00021918,30]
[340140783,1728673872176,517.67734433,0.00021918,30]
[340140784,1728673872872,181.362415,0.00026986,2]
[340140785,1728673940459,153.68,0.000388,31]
[340140786,1728673940521,153.68,0.000388,31]
[340140787,1728673940579,153.68,0.000388,31]
[340140788,1728673940641,153.68,0.000388,31]
[340140789,1728673940761,153.68,0.000388,31]
[340140790,1728673940825,153.68,0.000388,31]
[340140791,1728673940855,342.44700329,0.0003701,2]
[340140792,1728673940889,153.68,0.000388,31]
[340140793,1728673940932,153.68,0.000388,31]
[340140794,1728673940997,153.68,0.00044,36]
[340140795,1728673941057,153.68,0.00044,36]
[340140796,1728673941112,153.68,0.00044,36]
[340140797,1728673941174,153.68,0.00044,36]
[340140798,1728673941235,153.68,0.00044,36]
[340140799,1728673941294,153.68,0.00044,36]
[340140800,1728673941354,153.68,0.00044,36]
[340140801,1728673941423,153.68,0.00044,36]
[340140802,1728673941580,153.68,0.00044,36]
[340140803,1728673941610,153.68,0.00044,36]
[340140804,1728673941646,153.68,0.00044,36]
[340140805,1728673941673,153.68,0.00044,36]
[340140806,1728673941704,153.68,0.00044,36]
[340140807,1728673941740,153.68,0.00044,36]
[340140808,1728673941786,153.68,0.00044,36]
[340140809,1728673941860,153.68,0.00044,36]
[340140810,1728673941912,153.68,0.000491,45]
[340140811,1728673941979,153.68,0.000491,45]
[340140812,1728673942036,153.68,0.000491,45]
[340140813,1728673942093,99.4101014,0.000491,45]
[340140815,1728674103140,210.92,0.0003,120]
[340140816,1728674385392,181.362415,0.00026986,2]
[340140817,1728674736147,-184.343672,0.00034532,2]
[340140818,1728674736171,-187.5,0.00035148,2]
[340140819,1728674736196,-187.5,0.00035759,2]
[340140820,1728674736219,-187.5,0.00036369,2]
[340140821,1728674736242,-187.5,0.0003698,2]
[340140822,1728674736266,-400.0,0.00037637,2]
[340140823,1728674736287,-400.0,0.00037637,2]
[340140824,1728674736308,-24900.0,0.00037638,2]
[340140825,1728674736336,-155.19,0.000388,31]
[340140826,1728674736364,-155.19,0.000388,31]
[340140827,1728674736390,-155.19,0.000388,31]
[340140828,1728674736417,-155.19,0.000388,31]
[340140829,1728674736444,-155.19,0.000388,31]
[340140830,1728674736464,-3811.76318172,0.00039921,14]
[340140831,1728674736485,-263.41080906,0.00039921,14]
[340140832,1728674736506,-560.0,0.00040245,5]
[340140833,1728674736527,-400.0,0.00041401,30]
[340140834,1728674736546,-501.38075388,0.000426,10]
[340140835,1728674736568,-500.0,0.000426,2]
[340140836,1728674736588,-783.0,0.00043034,5]
[340140837,1728674736611,-2060.76373836,0.00043414,120]
[340140838,1728674736632,-481.88404658,0.00043419,2]
[340140839,1728674736653,-178.232,0.00043519,67]
[340140840,1728674736675,-755.45051435,0.00044,3]
[340140841,1728674736705,-155.19,0.00044,36]
[340140842,1728674736734,-155.19,0.00044,36]
[340140843,1728674736762,-155.19,0.00044,36]
[340140844,1728674736788,-155.19,0.00044,36]
[340140845,1728674736817,-155.19,0.00044,36]
[340140846,1728674736844,-155.19,0.00044,36]
[340140847,1728674736871,-155.19,0.00044,36]
[340140848,1728674736897,-155.19,0.00044,36]
[340140849,1728674736924,-155.19,0.00044,36]
[340140850,1728674736951,-155.19,0.00044,36]
[340140851,1728674736972,-160.0,0.00044658,2]
[340140852,1728674736993,-481.88404658,0.00045014,2]
[340140853,1728674737014,-167.0,0.00046016,5]
[340140854,1728674737036,-157.4756048,0.0004606,120]
[340140855,1728674737058,-171.77491307,0.0004606,120]
[340140856,1728674737082,-35663.59663494,0.00046061,61]
[340140857,1728674737104,-481.88404658,0.0004661,2]
[340140858,1728674737127,-160.0,0.00047,90]
[340140859,1728674737150,-481.88404658,0.00048205,2]
[340140860,1728674737174,-2060.76373835,0.00048655,120]
[340140861,1728674737201,-155.19,0.000491,45]
[340140862,1728674737229,-155.19,0.000491,45]
[340140863,1728674737258,-155.19,0.000491,45]
[340140864,1728674737286,-155.19,0.000491,45]
[340140865,1728674737314,-155.19,0.000491,45]
[340140866,1728674737340,-155.19,0.000491,45]
[340140867,1728674737366,-155.19,0.000491,45]
[340140868,1728674737392,-155.19,0.000491,45]
[340140869,1728674737419,-155.19,0.000491,45]
[340140870,1728674737447,-155.19,0.000491,45]
[340140871,1728674737468,-251.28,0.000496,2]
[340140872,1728674737490,-481.88404658,0.000498,2]
[340140873,1728674737512,-1298.11,0.0004987,10]
[340140874,1728674737535,-23453.07462861,0.0004988,7]
[340140877,1728674845102,-414.5531199,0.0003907,2]
[340140878,1728674845125,-400.0,0.00044658,2]
[340140879,1728674845147,-400.0,0.00049517,2]
[340140880,1728674845172,-1266.72073489,0.00049789,28]
[340140881,1728674845193,-1081.76,0.0004988,10]
[340140882,1728674845217,-901.47,0.0004988,10]
[340140883,1728674845239,-751.22,0.0004988,10]
[340140884,1728674845262,-818.07636329,0.0004988,7]
[340140885,1728674845285,-24310.8555068,0.0004988,7]
[340140886,1728674845305,-79181.78413612,0.0004989,120]
[340140887,1728674845335,-9706.21586388,0.0004989,120]
[340140888,1728674845356,-2214.52380594,0.000499,2]
[340140889,1728674845379,-500.0,0.00049973,10]
[340140890,1728674845401,-500.0,0.00049973,10]
[340140891,1728674845426,-500.0,0.00049973,10]
[340140892,1728674845452,-24271.1509919,0.00049979,7]
[340140893,1728674845475,-24310.8555068,0.00049979,7]
[340140894,1728674845498,-407.98759949,0.00049979,31]
[340140895,1728674845519,-500.0,0.00049979,120]
[340140896,1728674845540,-500.0,0.00049979,120]
[340140897,1728674845560,-372.79629998,0.00049979,120]
[340140898,1728674845583,-500.0,0.00049979,120]
[340140899,1728674845609,-500.0,0.00049979,120]
[340140900,1728674845632,-353.44416076,0.00049979,120]
[340140901,1728674845656,-260.69050879,0.00049979,120]
[340140902,1728674845677,-500.0,0.00049979,120]
[340140903,1728674845699,-500.0,0.00049979,120]
[340140904,1728674845723,-400.34345741,0.00049979,120]
[340140905,1728674845749,-24271.1509919,0.0004998,7]
[340140906,1728674845778,-24310.8555068,0.0004998,7]
[340140907,1728674845931,-2048.82594089,0.0004999,7]
[340140908,1728674851112,-626.02,0.0004998,10]
[340140909,1728674851137,-22222.32505101,0.0004999,7]
[340140910,1728674851164,-24310.8555068,0.0004999,7]
[340140911,1728674851193,-26585.96816619,0.0004999,7]
[340140912,1728674872193,241.01485706,0.00023,2]
[340140914,1728674916345,128134.1652811,0.00022,30]
[340140915,1728674922451,376.99304524,0.00028,120]
[340140916,1728674922888,373.37791304,0.00032,120]
[340140917,1728674922964,500.0,0.00024,2]
[340140918,1728674951651,-7401.15512001,0.00033,2]
[340140919,1728674951675,-159.535733,0.00035418,2]
[340140920,1728674951697,-1236.45824301,0.000372,103]
[340140921,1728674951719,-166.666666,0.00037428,2]
[340140922,1728674951742,-2334.376968,0.00037926,2]
[340140923,1728674951765,-2334.376968,0.00038611,2]
[340140924,1728674951788,-2334.376968,0.00039296,2]
[340140925,1728674951809,-218.09984025,0.00045,120]
[340140926,1728674951835,-153.0,0.00048517,120]
[340140927,1728674951861,-153.0,0.00048517,120]
[340140928,1728674951883,-153.0,0.00048517,120]
[340140929,1728674952028,1236.45824301,0.00042589,120]
[340140930,1728674952123,-336.28841115,0.00049417,2]
[340140931,1728674963460,5005.4219788,0.00035532,2]
[340140932,1728674973591,181.362415,0.00026986,2]
[340140936,1728674990764,153.0,0.00048517,120]
[340140937,1728675026208,175.60720604,0.00048517,60]
[340140977,1728675032218,-2112.99295383,0.00039934,120]
[340140978,1728675032229,-5672.85546527,0.00039934,120]
[340140979,1728675032241,-460.6132283,0.00039934,120]
[340140980,1728675032252,-1004.25000015,0.00039934,120]
[340140981,1728675032369,-218.44902069,0.00039934,120]
[340140982,1728675032378,-226.63888102,0.00039934,120]
[340140983,1728675032387,-1108.38064302,0.0004979,28]
[340140984,1728675032396,-1236.45824301,0.00049859,120]
[340140985,1728675032405,-521.68,0.0004987,10]
[340140987,1728675032414,-434.74,0.0004987,10]
[340140989,1728675032424,-362.28,0.0004987,10]
[340140991,1728675032438,-301.9,0.0004987,10]
[340140993,1728675032448,-3783.38084826,0.0004988,30]
[340140996,1728675032460,-10435.22195,0.0004988,30]
[340140998,1728675032472,-9956.44079603,0.0004988,30]
[340141096,1728675038591,-13047.64895939,0.0004988,30]
[340141098,1728675038612,-37771.66174544,0.0004988,30]
[340141103,1728675040070,7075.05644212,0.000495,2]
[340141110,1728675040365,-28239.73232534,0.0004988,30]
[340141111,1728675040374,-285.59131964,0.00049889,31]
[340141112,1728675040385,-500.0,0.00049889,120]
[340141113,1728675040394,-382.48335615,0.00049889,120]
[340141114,1728675040404,-500.0,0.00049889,120]
[340141115,1728675040414,-447.41091253,0.00049889,120]
[340141116,1728675040424,-260.95740999,0.00049889,120]
[340141117,1728675040433,-480.24042018,0.00049889,120]
[340141118,1728675040443,-500.0,0.00049889,120]
[340141119,1728675040453,-88888.0,0.0004989,120]
[340141120,1728675040462,-1993.0714254,0.000499,2]
[340141121,1728675040472,-36175.2447705,0.0004998,7]
[340141122,1728675040481,-13816.314325,0.0004998,7]
[340141123,1728675040490,-18087.6223853,0.0004999,7]
[340141124,1728675040500,-6908.1571625,0.0004999,7]
[340141125,1728675040509,-465.573335,0.0004999,120]
[340141126,1728675040518,-465.573335,0.0004999,120]
[340141127,1728675040527,-465.573335,0.0004999,120]
[340141128,1728675040536,-465.573335,0.0004999,120]
[340141129,1728675040546,-465.573335,0.0004999,120]
[340141130,1728675040555,-465.573335,0.0004999,120]
[340141131,1728675040564,-151.0,0.0004999,120]
[340141132,1728675040574,-151.0,0.0004999,120]
[340141133,1728675040584,-151.0,0.0004999,120]
[340141134,1728675040593,-151.0,0.0004999,120]
[340141135,1728675040602,-156.851966,0.0004999,120]
[340141136,1728675040612,-151.0,0.0004999,120]
[340141137,1728675040621,-151.0,0.0004999,120]
[340141138,1728675040630,-151.0,0.0004999,120]
[340141139,1728675040640,-151.0,0.0004999,120]
[340141140,1728675040648,-151.0,0.0004999,120]
[340141141,1728675040657,-151.0,0.0004999,120]
[340141142,1728675040666,-151.0,0.0004999,120]
[340141143,1728675040676,-287.198662,0.0004999,120]
[340141144,1728675040685,-287.198662,0.0004999,120]
[340141145,1728675040694,-287.198662,0.0004999,120]
[340141146,1728675040704,-287.198662,0.0004999,120]
[340141147,1728675040713,-287.198662,0.0004999,120]
[340141148,1728675040723,-287.198662,0.0004999,120]
[340141149,1728675040732,-151.0,0.0004999,120]
[340141150,1728675040742,-151.0,0.0004999,120]
[340141151,1728675040751,-151.0,0.0004999,100]
[340141152,1728675040760,-151.0,0.0004999,120]
[340141153,1728675040770,-151.0,0.0004999,120]
[340141154,1728675040779,-265.718603,0.0004999,120]
[340141155,1728675040788,-265.718603,0.0004999,120]
[340141156,1728675040798,-265.718603,0.0004999,120]
[340141157,1728675040807,-265.718603,0.0004999,120]
[340141158,1728675040816,-151.0,0.0004999,120]
[340141159,1728675040826,-151.0,0.0004999,120]
[340141160,1728675040835,-151.876419,0.0004999,120]
[340141161,1728675040845,-151.876419,0.0004999,120]
[340141162,1728675040854,-151.876419,0.0004999,120]
[340141163,1728675040864,-151.876419,0.0004999,120]
[340141164,1728675040873,-151.876419,0.0004999,120]
[340141165,1728675040883,-151.876419,0.0004999,120]
[340141166,1728675040892,-151.0,0.0004999,120]
[340141167,1728675040902,-36817.09360514,0.0004999,7]
[340141168,1728675040915,-2539.31711602,0.0004999,7]
[340141169,1728675041008,-12169.604429,0.0004999,7]
[340141170,1728675041021,-111262.58631684,0.0004999,7]
[340141171,1728675041030,-75989.7287875,0.0004999,7]
[340141172,1728675041039,-151.0,0.0004999,120]
[340141173,1728675041048,-151.0,0.0004999,120]
[340141174,1728675041057,-34031.52804329,0.0005,63]
[340141175,1728675041067,-15514.00463125,0.0005,84]
[340141176,1728675041170,-69579.51314261,0.0005,120]
[340141177,1728675041182,-89137.6942196,0.0005,120]
[340141178,1728675041193,-8268.27238062,0.0005,120]
[340141179,1728675041204,-4192.59727497,0.0005,120]
[340141207,1728675043410,-51.22531442,0.0004999,120]
[340141208,1728675043422,-99.77468558,0.0004999,120]
[340141209,1728675043431,-151.0,0.0004999,120]
[340141210,1728675043440,-37.51531457,0.0005,120]
[340141211,1728675043904,-11808.95449134,0.0005,120]
[340141229,1728675083797,3167.78311144,0.00043514,2]
[340141230,1728675083820,14600.78117717,0.00043514,2]
[340141231,1728675491972,181.362415,0.00026986,2]
[340141242,1728675957154,-155.28,0.000388,31]
[340141243,1728675957181,-155.28,0.000388,31]
[340141244,1728675957207,-213.381877,0.00041787,2]
[340141245,1728675957229,-194.51779523,0.00043056,30]
[340141246,1728676014431,6225.51,0.0003201,2]
[340141247,1728676023570,174.686285,0.00026986,2]
[340141248,1728676026972,1813.47793121,0.0003201,2]
[340141249,1728676163141,-166.666666,0.00041129,2]
[340141250,1728676163165,-550.0,0.00043056,30]
[340141251,1728676163188,-550.0,0.00043056,5]
[340141252,1728676163215,-15402.0992452,0.00043057,2]
[340141253,1728676163355,-2833.00569397,0.00043369,120]
[340141254,1728676163391,-180.6735071,0.00043469,2]
[340141255,1728676163417,-155.28,0.00044,36]
[340141256,1728676163444,-155.28,0.00044,36]
[340141257,1728676163480,-155.28,0.00044,36]
[340141258,1728676163508,-155.28,0.00044,36]
[340141259,1728676163531,-400.0,0.00044658,2]
[340141260,1728676163554,-543.0,0.00045781,5]
[340141261,1728676163577,-2833.00569393,0.00046952,120]
[340141262,1728676163600,-770.0,0.00047362,30]
[340141263,1728676163622,-250.0,0.00048648,2]
[340141264,1728676163649,-155.28,0.000491,45]
[340141265,1728676163674,-155.28,0.000491,45]
[340141266,1728676163698,-155.28,0.000491,45]
[340141267,1728676163730,-155.28,0.000491,45]
[340141268,1728676164319,-386.96,0.0004949,30]
[340141269,1728676164342,-322.46,0.0004949,30]
[340141270,1728676164366,-268.72,0.0004949,30]
[340141271,1728676164388,-223.93,0.0004949,30]
[340141272,1728676164413,-352.35,0.0004949,10]
[340141273,1728676164435,-186.61,0.0004949,30]
[340141274,1728676164464,-293.62,0.0004949,10]
[340141275,1728676164488,-1007.21964997,0.00049499,10]
[340141276,1728676164511,-164.26488738,0.00049499,120]
[340141277,1728676164533,-500.0,0.00049499,120]
[340141278,1728676164554,-500.0,0.00049499,120]
[340141279,1728676164576,-500.0,0.00049499,120]
[340141280,1728676164598,-270.48311654,0.00049499,120]
[340141281,1728676164623,-500.0,0.00049499,120]
[340141282,1728676164647,-500.0,0.00049499,120]
[340141283,1728676164669,-500.0,0.00049499,120]
[340141284,1728676164692,-500.0,0.00049499,120]
[340141285,1728676164720,-500.0,0.00049499,120]
[340141286,1728676164745,-500.0,0.00049499,120]
[340141287,1728676164766,-500.0,0.00049499,120]
[340141288,1728676164787,-500.0,0.00049499,120]
[340141289,1728676164810,-500.0,0.00049499,120]
[340141290,1728676164830,-500.0,0.00049499,120]
[340141291,1728676164852,-500.0,0.00049499,120]
[340141292,1728676164874,-500.0,0.00049499,120]
[340141293,1728676164896,-535.52809797,0.00049499,120]
[340141294,1728676164919,-500.0,0.00049499,120]
[340141295,1728676164941,-500.0,0.00049499,120]
[340141296,1728676164964,-500.0,0.00049499,120]
[340141297,1728676164987,-500.0,0.00049499,120]
[340141298,1728676165008,-500.0,0.00049499,120]
[340141299,1728676165028,-1313.2815655,0.000495,120]
[340141300,1728676165050,-13846.37997551,0.000495,2]
[340141301,1728676200119,251.0,0.00048571,2]
[340141302,1728676224285,175.60720605,0.00048571,60]
[340141310,1728676232370,-809.97140976,0.000495,2]
[340141311,1728676232383,-6097.5,0.000495,2]
[340141312,1728676232397,-1220.55784839,0.000495,2]
[340141313,1728676232436,-5375.87901696,0.000495,2]
[340141314,1728676232498,-6947.53871369,0.000495,2]
[340141381,1728676238962,-1500.0,0.000495,2]
[340141427,1728676240611,-28029.6888574,0.000495,2]
[340141428,1728676240621,-196.0,0.000495,30]
[340141429,1728676240634,-400.0,0.00049517,2]
[340141430,1728676240644,-178.23374537,0.0004978,87]
[340141431,1728676240654,-720.22217206,0.0004978,2]
[340141432,1728676240663,-1970.96541089,0.0004978,28]
[340141433,1728676240673,-720.22217204,0.00049808,2]
[340141434,1728676240830,-720.22217204,0.00049835,2]
[340141435,1728676240839,-416.06,0.0004986,30]
[340141436,1728676240849,-720.22217204,0.00049863,2]
[340141437,1728676240859,-500.0,0.00049869,120]
[340141438,1728676240868,-615.05867755,0.00049869,120]
[340141439,1728676240878,-329.95,0.0004987,30]
[340141440,1728676240887,-274.96,0.0004987,30]
[340141441,1728676240897,-441.31,0.0004987,30]
[340141442,1728676240907,-155.51,0.0004987,30]
[340141443,1728676240916,-777.57,0.0004987,30]
[340141444,1728676240926,-13491.8759287,0.0004987,7]
[340141445,1728676240936,-1275.53178286,0.0004987,7]
[340141446,1728676240947,-24835.21798314,0.0004988,120]
[340141447,1728676240957,-720.22217204,0.0004989,2]
[340141448,1728676240966,-315.15,0.0004989,10]
[340141449,1728676240975,-2000.0,0.000499,120]